Workbook

Sheet 1st_BTC
P1: Computer simulation to model the performance of trading on the Bitcoin market.
A2: Computer simulation to model the performance of trading on the Bitcoin market.
R3: The Model interprets the real market trading in figures, graphs and formal functional dependencies accomplishing a maximal isomorphism between them. It is formed in hierarchical structure (pyramid) of five stratification layers. Zero Level is this Worksheet "Intro" and the import data panel.
Y4: 1900-01-02
R7: Steps-to-Follow
P8: 1) Read More Information about the right and roles of use the program by clicking on the respective Button and, if agree, click Continue  Button to go to Worksheet "FORECAST".
P10: 1) Read More Information about the right and roles of use the program by clicking on the respective Button and, if agree, click Continue  Button to go to Worksheet "FORECAST".
P12: 3) On the zoomed 100+ screen you see graphical representation and tables of the 1st (A), 2nd (B)and 3rd (C) level forecastings of each one of the ten currencies on one Sheet BTC—A Short position (20 periods; refresh every 6 min, 2h smoothing average); B Operational position (2h); and C Long (36h) showing the long trend. Gharts B and C are construed by Weighted Moving Average Exponential Smoothing Method with exponential smoothing constant α (0 ≤ α ≤ 1).
P17: Important. By default α = 0.2. When the Sales time series contains substantial random variability, a small value of α is preferred; in contrary, for relatively little random variability, larger values of α have the advantage of quickly adjusting the forecasts when errors occur and therefore allowing the forecast to react faster to changing the trend projection. You must change the value of α manually (after Up/Down Bars hide) by the Spin Button for each currency on every one time position B - prevailing ↘; C -prevailing ↗. The idea is to remember the dealer to se-lect an appropriate α for the trading in interest, thus to reduce the error of the forecasting of this Tail .
I19: PROFESSIONAL-FULL VERSION COMPLEX SOFTWARE PACKAGES
A23: 
A24:  This file is generated for online use only. Any distribution or reproduction of this file in whole or in part, OR the divulgence of any of its contents is expressly prohibited. | P24: This information is applied for: ï fast visual guidance for the direction of change the error with the growth of α from 0.1 to 1; and ï the next higher level in the hierarchical structure of the model—quali- tative assessment of the dealing by the trader.
A25:  It is a professional version in which all editing functions are enabled. You are able to make changes to it. The program is protected from potentially malicious virus attack.
A26:  We provide this basic program for operation without warranty, if you make changes, either expressed or implied. This includes, but not limited to, the implied warranties
A27:  of fitness for a particular purpose. It assumes you are not familiar with the program language that is being applied. Our support team can help explain the functionality of
A28:  every particular procedure and can modify this version to provide added functionality or construct procedures to meet your specific requirements. | L28: Click Continue Ø | P28: 4) Refresh the imported exchange data of the current transactions by clicking on the big currency icon.
P29: 5) Use the small currency icons (i) to move the screen to the selceted surrency; and (ii) to refresh the background collors of the forecasting cells, computing to the trends Up, Down and Equal.
A31: Click Bitcoin to visit the author's website, and then select BTC | G31:  | P31: In case one currency is withdrawn from the exchange temporary or forever, it appears visible indication of this event.
P32: Enjoy
L33: Прочети описанието на работната страница
W34: More info
G35: BitCoins
L37: Read Description of the Worksheet BTC

Sheet BTC
A1: 1900-01-17 | H1: ❿ | M1: ê ê ê FORECASTING ê ê ê | V1: Прочети  описанието | X1: =TODAY() -> 2014-04-29 | AN1: Register New Account
A2: SXC/BTC | D2: =IF(A31="FALCE","❷","") ->  | E2: =IF(A58="FALCE","❸","") ->  | F2: =IF(A85="FALCE","❹","") ->  | G2: =IF(A112="FALCE","❺","") ->  | H2: =IF(A139="FALCE","❻","") ->  | I2: =IF(A166="FALCE","❼","") ->  | J2: =IF(A193="FALCE","❽","") ->  | K2: =IF(A220="FALCE","❾","") ->  | L2: =IF(A247="FALCE","❿","") ->  | T2: =IF(A3="FALSE","THERE IS CHANGE IN THE IMPORT DATA. ADJUST THE INPUT !","") ->  | U2: SXC/BTC 0.00000520 | V2: SXC/BTC | W2: 00:00:00.449 | X2: New Date | Z2: To source | AA2: SexCoin | AN2: Login
A3: =IF(V2=A2,"TRUE","FALSE") -> TRUE | B3: time | C3: 1 | D3: 2 | E3: 3 | F3: 4 | G3: 5 | H3: 6 | I3: 7 | J3: 8 | K3: 9 | L3: 10 | M3: 11 | N3: 12 | O3: 13 | P3: 14 | Q3: 15 | R3: 16 | S3: 17 | T3: 18 | U3: 19 | V3: 20 | W3: 21 | X3: 1900-01-20 | Y3: 0.06 | Z3: QUALITY ASSESMENT MODELING
A4: -1 | B4: Price Yt | C4: 5.02e-06 | D4: 5.02e-06 | E4: 5.02e-06 | F4: 5.02e-06 | G4: 5.02e-06 | H4: 5.02e-06 | I4: 5.02e-06 | J4: 5.02e-06 | K4: 5.02e-06 | L4: 5.02e-06 | M4: 5.02e-06 | N4: 5.11e-06 | O4: 5.11e-06 | P4: 5.11e-06 | Q4: 5.11e-06 | R4: 5.11e-06 | S4: 5.11e-06 | T4: 5.11e-06 | U4: 5.2e-06 | V4: 5.2e-06 | X4: 3 | Y4: 1 | Z4: =$Y$3/365*AA5 -> 0.001643835616 | AA4: 00:00:14.203 | AN4: Apr 28th 05:24PM EST
A5: Fd | B5: F↗↘ | F5: =3/6*E4+2/6*D4+1/6*C4 -> 5.02e-06 | G5: =3/6*F4+2/6*E4+1/6*D4 -> 5.02e-06 | H5: =3/6*G4+2/6*F4+1/6*E4 -> 5.02e-06 | I5: =3/6*H4+2/6*G4+1/6*F4 -> 5.02e-06 | J5: =3/6*I4+2/6*H4+1/6*G4 -> 5.02e-06 | K5: =3/6*J4+2/6*I4+1/6*H4 -> 5.02e-06 | L5: 5.02e-06 | M5: 5.02e-06 | N5: 5.02e-06 | O5: 5.065e-06 | P5: 5.095e-06 | Q5: 5.11e-06 | R5: 5.11e-06 | S5: 5.11e-06 | T5: 5.11e-06 | U5: =3/6*T4+2/6*S4+1/6*R4 -> 5.11e-06 | V5: =3/6*U4+2/6*T4+1/6*S4 -> 5.155e-06 | W5: =3/6*V4+2/6*U4+1/6*T4 -> 5.185e-06 | X5: 2 | Y5: 0 | Z5: 0.0001643835616 | AA5: 10 | AN5: USD Markets
A6: ❶ | B6: -0.05 | C6: -0.01973684 | D6: -0.03141231291 | E6: -0.05224000227 | F6: -0.0325526929 | G6: -0.0333887662 | H6: -0.0323894862 | I6: -0.0345326462 | J6: -0.0424219142 | K6: -0.0345326462 | L6: -0.0345326462 | M6: -0.0345326462 | N6: 0 | O6: 0 | P6: 0 | Q6: 0 | R6: 0 | S6: 0 | T6: 0 | U6: 0 | V6: 0 | X6: =IF(X5>$X$3,0,X5) -> 2 | Y6: =IF(Y5>$X$3,0,Y5) -> 0 | AA6: =IF(X7=0,"",IF(X7>0,"C","N")) -> N
B7: Price Yt | C7: 5.02e-06 | D7: 5.01e-06 | E7: 5.01e-06 | F7: 5.01e-06 | G7: 5.01e-06 | H7: 5.02e-06 | I7: 5.02e-06 | J7: 5.02e-06 | K7: 5.02e-06 | L7: 5.02e-06 | M7: 5.02e-06 | N7: 5.03e-06 | O7: 5.03e-06 | P7: 5.02e-06 | Q7: 5.02e-06 | R7: 5.02e-06 | S7: 5.02e-06 | T7: 5.02e-06 | U7: 5.02e-06 | V7: 5.11e-06 | X7: =NPV($AA$4,C6:V6)+B6 -> -0.4318869249 | AN7: BTC/USD 0.00000000
A8: =A9/10 -> 0.2 | B8: F↗↘ | C8: =ABS(C7) -> 5.02e-06 | D8: =ABS(C7) -> 5.02e-06 | E8: =D8+а*(D7-D8) -> 5.018e-06 | F8: 5.0164e-06 | G8: 5.01512e-06 | H8: =G8+а*(G7-G8) -> 5.014096e-06 | I8: 5.0152768e-06 | J8: 5.01622144e-06 | K8: 5.016977152e-06 | L8: 5.017581722e-06 | M8: 5.018065377e-06 | N8: 5.018452302e-06 | O8: 5.020761841e-06 | P8: 5.022609473e-06 | Q8: 5.022087579e-06 | R8: 5.021670063e-06 | S8: 5.02133605e-06 | T8: 5.02106884e-06 | U8: =T8+а*(T7-T8) -> 5.020855072e-06 | V8: =U8+а*(U7-U8) -> 5.020684058e-06 | W8: 5.038547246e-06 | X8: =IF(B6=0,0,AA8*365/$AA$5) ->  | AA8: =IRR(B6:V6) ->  | AN8: DOGE/USD 0.00000000
A9: 1900-01-02 | B9: -0.01 | C9: -0.00398985 | D9: -0.00059161 | E9: 0.00048748 | F9: -0.00444189 | G9: 0.00232066 | H9: 0.00402182 | I9: 0.00872377 | J9: 0.00478998 | X9: =NPV($AA$4,C9:V9)+B9 -> 0.00130169228 | AN9: FTC/USD 0.00000000
A10: 1900-01-02 | B10: Price Yt | C10: 5.192638828e-06 | D10: 5.190111062e-06 | E10: 5.149155815e-06 | F10: 5.149155815e-06 | G10: 5.149155815e-06 | H10: 5.169659721e-06 | I10: 5.169659721e-06 | J10: 5.195727777e-06 | K10: 5.139738133e-06 | L10: 5.135848152e-06 | M10: 5.096992301e-06 | N10: 5.081709133e-06 | O10: 5.016775793e-06 | P10: 5.016775793e-06 | Q10: 5.012483329e-06 | R10: 5.018452302e-06 | S10: 5.020761841e-06 | T10: 5.038547246e-06 | U10: 5.038547246e-06 | V10: 5.038547246e-06 | X10: =IF(B9=0,0,AA16*365/$AA$5) -> 0.446720176 | Z10: 1900-01-01 | AN10: LTC/USD 0.00000000
A11: =A12/10 -> 0.2 | B11: F↗↘ | C11: =ABS(C10) -> 5.192638828e-06 | D11: =ABS(C10) -> 5.192638828e-06 | E11: =D11+а13*(D10-D11) -> 5.192133275e-06 | F11: 5.183537783e-06 | G11: 5.176661389e-06 | H11: 5.171160274e-06 | I11: 5.170860164e-06 | J11: 5.170620075e-06 | K11: 5.175641616e-06 | L11: 5.168460919e-06 | M11: 5.161938366e-06 | N11: 5.148949153e-06 | O11: 5.135501149e-06 | P11: 5.111756077e-06 | Q11: =P11+а13*(P10-P11) -> 5.09276002e-06 | R11: 5.076704682e-06 | S11: 5.065054206e-06 | T11: =S11+а13*(S10-S11) -> 5.056195733e-06 | U11: 5.052666036e-06 | V11: 5.049842278e-06 | W11: 5.047583272e-06 | AE11: Click here to START
A12: 1900-01-02 | B12: -0.05 | C12: -0.01973684 | D12: -0.03141231291 | E12: -0.05224000227 | F12: -0.0325526929 | G12: -0.0333887662 | H12: -0.0323894862 | I12: -0.0345326462 | J12: -0.0424219142 | K12: -0.0345326462 | L12: -0.0345326462 | M12: -0.0345326462 | N12: 00:00:00 | O12: 00:00:00 | P12: 00:00:00 | Q12: 00:00:00 | R12: 00:00:00 | S12: 00:00:00 | T12: 00:00:00 | U12: 00:00:00 | V12: 00:00:00
A13: 1900-01-02 | B13: A | I13: B | Q13: C | W13: Go to: | Y13: 2014-03-30 | Z13: Primary graph
A14: α# | X14: Go to: | AA14: =IF(X9=0,"",IF(X9>0,"C","N")) -> C | AN14: BTC Markets
B16: SXC | AA16: =IRR(B9:V9) -> 0.01223890893
W18: SXC | AN18: 42/BTC 37.00000000
Y19: 2014-03-30 | Z19: 8 | AA19: =IF(X12=0,"",IF(X12>0,"C","N")) ->  | AN19: AC/BTC 0.00001000
AN20: ALF/BTC 0.00000139
A21: SexCoin | AN21: AMC/BTC 0.00000213
AN22: ANC/BTC 0.00157000
AN23: ARG/BTC 0.00005005
AN24: AUR/BTC 0.00174649
Y25: 2014-04-18 | Z25: =AA5 -> 10 | AN25: BC/BTC 0.00029198
AN26: BCX/BTC 0.00000493
AN27: BEN/BTC 0.00000655
AN28: BET/BTC 0.00000747
Z29: To source | AA29: AuroraCoin | AN29: BQC/BTC 0.00001052
A30: AUR/BTC | C30: =IF(A4="FALCE","❶","") ->  | D30: =IF(A4="FALCE","❶","") ->  | E30: =IF(A58="FALCE","❸","") ->  | F30: =IF(A85="FALCE","❹","") ->  | G30: =IF(A112="FALCE","❺","") ->  | H30: =IF(A139="FALCE","❻","") ->  | I30: =IF(A166="FALCE","❼","") ->  | J30: =IF(A193="FALCE","❽","") ->  | K30: =IF(A220="FALCE","❾","") ->  | L30: =IF(A247="FALCE","❿","") ->  | M30: =IF(A247="FALCE","❿","") ->  | T30: =IF(A31="FALSE","THERE IS CHANGE IN THE IMPORT DATA. ADJUST THE INPUT !","") ->  | U30: AUR/BTC 0.00174649 | V30: AUR/BTC | W30: 0.00174649 | AN30: BTB/BTC 0.03200003
A31: =IF(V30=A30,"TRUE","FALSE") -> TRUE | B31: Price Yt | C31: 0.00088129 | D31: 0.0008899 | E31: 0.0008899 | F31: 0.0008899 | G31: 0.0008899 | H31: 0.0008899 | I31: 0.0008899 | J31: 0.0008899 | K31: 0.0008899 | L31: 0.0008899 | M31: 0.0008899 | N31: 0.00089007 | O31: 0.00089007 | P31: 0.00089007 | Q31: 0.00089007 | R31: 0.00089007 | S31: 0.00089007 | T31: 0.00089007 | U31: 0.00174649 | V31: 0.00174649 | X31: =$X$3 -> 1900-01-20 | Y31: ↙ Number of periods for A and B cycles | AN31: BTE/BTC 0.00002500
A32: Fd | B32: F↗↘ | F32: =3/6*E31+2/6*D31+1/6*C31 -> 0.000888465 | G32: 0.0008899 | H32: 0.0008899 | I32: 0.0008899 | J32: 0.0008899 | K32: 0.0008899 | L32: 0.0008899 | M32: 0.0008899 | N32: 0.0008899 | O32: 0.000889985 | P32: 0.0008900416667 | Q32: 0.00089007 | R32: 0.00089007 | S32: 0.00089007 | T32: 0.00089007 | U32: 0.00089007 | V32: =3/6*U31+2/6*T31+1/6*S31 -> 0.00131828 | W32: =3/6*V31+2/6*U31+1/6*T31 -> 0.001603753333 | X32: 2 | Y32: 0 | AN32: BTG/BTC 0.00373395
A33: ❷ | B33: 0.05 | C33: -0.0099103 | D33: -0.03507568686 | E33: -0.05681890648 | F33: -0.07481411921 | G33: -0.07370384987 | H33: -0.06529382987 | I33: -0.06743698987 | J33: 0 | K33: 0 | L33: 0 | M33: 0 | N33: 0 | O33: 0 | P33: 0 | Q33: 0 | R33: 0 | S33: 0 | T33: 0 | U33: 0 | V33: 0 | X33: =IF(X32>$X$3,0,X32) -> 2 | Y33: =IF(Y32>$X$3,0,Y32) -> 0 | AA33: =IF(X34=0,"",IF(X34>0,"C","N")) -> N | AN33: BUK/BTC 0.00012000
B34: Price Yt | C34: 0.00088006 | D34: 0.00087055 | E34: 0.00087055 | F34: 0.00087055 | G34: 0.00087055 | H34: 0.00086965 | I34: 0.00086965 | J34: 0.00086965 | K34: 0.00086965 | L34: 0.00086965 | M34: 0.00086965 | N34: 0.0008799 | O34: 0.0008799 | P34: 0.0008824 | Q34: 0.0008824 | R34: 0.00088129 | S34: 0.00088129 | T34: 0.0008899 | U34: 0.0008899 | V34: 0.00089007 | X34: =NPV($Y$3,C33:L33)+B33 -> -0.243487443 | AN34: CACH/BTC 0.00050546
A35: =A36/10 -> 0.2 | B35: F↗↘ | C35: =ABS(C34) -> 0.00088006 | D35: =ABS(C34) -> 0.00088006 | E35: =D35+а2*(D34-D35) -> 0.000878158 | F35: 0.0008766364 | G35: 0.00087541912 | H35: 0.000874445296 | I35: 0.0008734862368 | J35: 0.0008727189894 | K35: 0.0008721051916 | L35: 0.0008716141532 | M35: 0.0008712213226 | N35: 0.0008709070581 | O35: 0.0008727056465 | P35: 0.0008741445172 | Q35: 0.0008757956137 | R35: 0.000877116491 | S35: 0.0008779511928 | T35: 0.0008786189542 | U35: 0.0008808751634 | V35: 0.0008826801307 | W35: 0.0008841581046 | X35: =IF(B33=0,0,AA35*365/$AA$5) -> 24.78146978 | AA35: =IRR(B33:V33) -> 0.6789443775 | AN35: CAP/BTC 0.00001113
A36: 1900-01-02 | X36: =NPV($Y$3,C36:L36)+B36 -> 0 | AN36: CASH/BTC 0.00001202
A37: 1900-01-02 | B37: Price Yt | C37: 0.001326773198 | D37: 0.001340519325 | E37: 0.001340519325 | F37: 0.00133730546 | G37: 0.001338167668 | H37: 0.001338167668 | I37: 0.001338167668 | J37: 0.001337934134 | K37: 0.001303153308 | L37: 0.001123007416 | M37: 0.001102421933 | N37: 0.00103191779 | O37: 0.001025216181 | P37: 0.0009765670701 | Q37: 0.0009431674604 | R37: 0.0008711513073 | S37: 0.0008729010458 | T37: 0.0008841581046 | U37: 0.0008841581046 | V37: 0.0008841581046 | X37: =IF(B36=0,0,AA42*365/$AA$5) -> 0 | AN37: CAT/BTC 0.00007725
A38: =A39/10 -> 0.2 | B38: F↗↘ | C38: =ABS(C37) -> 0.001326773198 | D38: =ABS(C37) -> 0.001326773198 | E38: =D38+а23*(D37-D38) -> 0.001329522423 | F38: 0.001331721803 | G38: 0.001332838535 | H38: 0.001333904361 | I38: 0.001334757023 | J38: 0.001335439152 | K38: 0.001335938148 | L38: 0.00132938118 | M38: 0.001288106427 | N38: 0.001250969528 | O38: 0.001207159181 | P38: 0.001170770581 | Q38: 0.001131929879 | R38: 0.001094177395 | S38: 0.001049572177 | T38: =S38+а23*(S37-S38) -> 0.001014237951 | U38: 0.0009882219818 | V38: 0.0009674092064 | W38: =V38+а23*(V37-V38) -> 0.000950758986 | AN38: CGB/BTC 0.00082968
A39: 1900-01-02 | AN39: CINNI/BTC 0.00007325
A40: 1900-01-02 | B40: A | I40: B | Q40: C | W40: Go to: | X40: ↙ Refresh | Y40: 2014-04-18 | Z40: 0 | AN40: CLR/BTC 0.00010000
A41: α# | X41: Go to: | AN41: CMC/BTC 0.00004000
AA42: =IRR(B36:V36) ->  | AN42: CNC/BTC 0.00000380
B43: AUR | AN43: COMM/BTC 0.00000063
AN44: CRC/BTC 0.00004350
AN45: CSC/BTC 0.00000326
Y46: 2014-04-18 | Z46: 0 | AN46: DEM/BTC 0.00002011
W47: AUR | AN47: DGB/BTC 0.00000028
A48: AuroraCoin | AN48: DGC/BTC 0.00005678
AN49: DMD/BTC 0.00090546
AN50: DOGE/BTC 0.00000108
AN51: DRK/BTC 0.00383659
AN52: DVC/BTC 0.00000026
K53: $ | AN53: EAC/BTC 0.00000006
K54: α | AN54: ELC/BTC 0.00031670
AN55: EMC2/BTC 0.00000495
Z56: To source | AA56: DogeCoin | AN56: EMD/BTC 0.00000425
A57: DOGE/BTC | C57: =IF(A4="FALCE","❶","") ->  | D57: =IF(A31="FALCE","❷","") ->  | E57: =IF(A31="FALCE","❷","") ->  | F57: =IF(A85="FALCE","❹","") ->  | G57: =IF(A112="FALCE","❺","") ->  | H57: =IF(A139="FALCE","❻","") ->  | I57: =IF(A166="FALCE","❼","") ->  | J57: =IF(A193="FALCE","❽","") ->  | K57: =IF(A220="FALCE","❾","") ->  | L57: =IF(A247="FALCE","❿","") ->  | M57: =IF(A247="FALCE","❿","") ->  | T57: =IF(A58="FALSE","THERE IS CHANGE IN THE IMPORT DATA. ADJUST THE INPUT !","") ->  | U57: DOGE/BTC 0.00000108 | V57: DOGE/BTC | W57: 1.08e-06 | AN57: EXE/BTC 0.00002280
A58: =IF(V57=A57,"TRUE","FALSE") -> TRUE | B58: Price Yt | C58: 1.04e-06 | D58: 1.07e-06 | E58: 1.07e-06 | F58: 1.07e-06 | G58: 1.07e-06 | H58: 1.07e-06 | I58: 1.07e-06 | J58: 1.07e-06 | K58: 1.07e-06 | L58: 1.07e-06 | M58: 1.07e-06 | N58: 1.07e-06 | O58: 1.07e-06 | P58: 1.07e-06 | Q58: 1.07e-06 | R58: 1.07e-06 | S58: 1.07e-06 | T58: 1.07e-06 | U58: 1.08e-06 | V58: 1.08e-06 | X58: =$X$3 -> 1900-01-20 | Y58: ↙ Number of periods for A and B cycles | AN58: EZC/BTC 0.00000326
A59: Fd | B59: F↗↘ | F59: =3/6*E58+2/6*D58+1/6*C58 -> 1.065e-06 | G59: 1.07e-06 | H59: 1.07e-06 | I59: 1.07e-06 | J59: 1.07e-06 | K59: 1.07e-06 | L59: 1.07e-06 | M59: 1.07e-06 | N59: 1.07e-06 | O59: 1.07e-06 | P59: 1.07e-06 | Q59: 1.07e-06 | R59: 1.07e-06 | S59: 1.07e-06 | T59: 1.07e-06 | U59: 1.07e-06 | V59: 1.075e-06 | W59: 1.078333333e-06 | X59: 2 | Y59: 0 | AN59: FFC/BTC 0.00000032
A60: ❸ | B60: -0.01 | C60: -0.00398985 | D60: -0.00059161 | E60: 0.00048748 | F60: -0.00444189 | G60: 0.00232066 | H60: 0.00402182 | I60: 0.00872377 | J60: 0.00478998 | X60: =IF(X59>$X$3,0,X59) -> 2 | Y60: =IF(Y59>$X$3,0,Y59) -> 0 | AA60: =IF(X61=0,"",IF(X61>0,"C","N")) -> N | AN60: FLAP/BTC 0.00000001
B61: Price Yt | C61: 1.04e-06 | D61: 1.03e-06 | E61: 1.03e-06 | F61: 1.03e-06 | G61: 1.03e-06 | H61: 1.03e-06 | I61: 1.03e-06 | J61: 1.03e-06 | K61: 1.03e-06 | L61: 1.03e-06 | M61: 1.03e-06 | N61: 1.02e-06 | O61: 1.02e-06 | P61: 1.03e-06 | Q61: 1.03e-06 | R61: 1.04e-06 | S61: 1.04e-06 | T61: 1.07e-06 | U61: 1.07e-06 | V61: 1.07e-06 | X61: =NPV($Y$3,C60:L60)+B60 -> -0.004023180983 | AN61: FLT/BTC 0.00001301
A62: =A63/10 -> 0.2 | B62: F↗↘ | C62: =ABS(C61) -> 1.04e-06 | D62: =ABS(C61) -> 1.04e-06 | E62: =D62+а3*(D61-D62) -> 1.038e-06 | F62: 1.0364e-06 | G62: 1.03512e-06 | H62: 1.034096e-06 | I62: 1.0332768e-06 | J62: 1.03262144e-06 | K62: 1.032097152e-06 | L62: 1.031677722e-06 | M62: 1.031342177e-06 | N62: 1.031073742e-06 | O62: 1.028858993e-06 | P62: 1.027087195e-06 | Q62: 1.027669756e-06 | R62: 1.028135805e-06 | S62: 1.030508644e-06 | T62: 1.032406915e-06 | U62: 1.039925532e-06 | V62: 1.045940426e-06 | W62: =V62+а3*(V61-V62) -> 1.05075234e-06 | X62: =IF(B60=0,0,AA62*365/$AA$5) -> 0.446720176 | AA62: =IRR(B60:V60) -> 0.01223890893 | AN62: FRC/BTC 0.00002259
A63: 1900-01-02 | B63: -0.01 | C63: -0.00398985 | D63: -0.00059161 | E63: 00:00:42.118 | F63: -0.00444189 | G63: 00:03:20.505 | H63: 00:05:47.485 | I63: 00:12:33.734 | J63: 0.00478998 | X63: =NPV($Y$3,C90:L90)+B90 -> 0.005976819017 | AN63: FRK/BTC 0.00046900
A64: 1900-01-02 | B64: Price Yt | C64: 1.14756e-06 | D64: 1.146048e-06 | E64: 1.166630538e-06 | F64: 1.166630538e-06 | G64: 1.166630538e-06 | H64: 1.14330443e-06 | I64: 1.130643544e-06 | J64: 1.064263142e-06 | K64: 1.061410513e-06 | L64: 1.039790474e-06 | M64: 1.039832379e-06 | N64: 1.031743322e-06 | O64: 1.029509949e-06 | P64: 1.006363448e-06 | Q64: 1.010458085e-06 | R64: 1.030273649e-06 | S64: 1.028218919e-06 | T64: 1.05075234e-06 | U64: 1.05075234e-06 | V64: 1.05075234e-06 | X64: =IF(B63=0,0,AA69*365/$AA$5) -> 0.446720176 | AN64: FST/BTC 0.00000284
A65: =A66/10 -> 0.2 | B65: F↗↘ | C65: =ABS(C64) -> 1.14756e-06 | D65: =ABS(C64) -> 1.14756e-06 | E65: =D65+а33*(D64-D65) -> 1.1472576e-06 | F65: 1.151132188e-06 | G65: 1.154231858e-06 | H65: 1.156711594e-06 | I65: 1.154030161e-06 | J65: 1.149352838e-06 | K65: 1.132334899e-06 | L65: 1.118150022e-06 | M65: 1.102478112e-06 | N65: 1.089948966e-06 | O65: 1.078307837e-06 | P65: 1.068548259e-06 | Q65: 1.056111297e-06 | R65: 1.046980655e-06 | S65: 1.043639254e-06 | T65: 1.040555187e-06 | U65: 1.042594617e-06 | V65: 1.044226162e-06 | W65: =V65+а33*(V64-V65) -> 1.045531398e-06 | AN65: FTC/BTC 0.00019722
A66: 1900-01-02 | AN66: GDC/BTC 0.00000030
A67: 1900-01-02 | B67: A | I67: B | Q67: C | W67: Go to: | X67: ↙ Refresh | Y67: 2014-03-30 | Z67: 0 | AA67: =IF(X63=0,"",IF(X63>0,"C","N")) -> C | AN67: GLC/BTC 0.00000186
A68: α# | X68: Go to: | AN68: GLD/BTC 0.00002603
AA69: =IRR(B63:V63) -> 0.01223890893 | AN69: GLX/BTC 0.00000084
B70: DOGE | AN70: HBN/BTC 0.00042500
AN71: HVC/BTC 0.00000747
AN72: IFC/BTC 0.00000005
Z73: 0 | AN73: IXC/BTC 0.00012734
AN74: JKC/BTC 0.00000500
AN75: KDC/BTC 0.00002050
A76: DogeCoin | W76: DOGE | AN76: KGC/BTC 0.00000110
AN77: LEAF/BTC 0.00000001
AN78: LK7/BTC 0.00000055
AN79: LKY/BTC 0.00000571
AN80: LOT/BTC 0.00000001
AN81: LTC/BTC 0.02334818
AN82: LYC/BTC 0.00000061
Z83: To source | AA83: NetCoin | AN83: MAX/BTC 0.00017113
A84: NET/BTC | C84: =IF(A4="FALCE","❶","") ->  | D84: =IF(A31="FALCE","❷","") ->  | E84: =IF(A58="FALCE","❸","") ->  | F84: =IF(A85="FALCE","❸","") ->  | G84: =IF(A112="FALCE","❺","") ->  | H84: =IF(A139="FALCE","❻","") ->  | I84: =IF(A166="FALCE","❼","") ->  | J84: =IF(A193="FALCE","❽","") ->  | K84: =IF(A220="FALCE","❾","") ->  | L84: =IF(A247="FALCE","❿","") ->  | M84: =IF(A247="FALCE","❿","") ->  | T84: =IF(A85="FALSE","THERE IS CHANGE IN THE IMPORT DATA. ADJUST THE INPUT !","") ->  | U84: NET/BTC 0.00000299 | V84: NET/BTC | W84: 2.99e-06 | AN84: MEC/BTC 0.00017400
A85: =IF(V84=A84,"TRUE","FALSE") -> TRUE | B85: Price Yt | C85: 3.01e-06 | D85: 3.01e-06 | E85: 3.01e-06 | F85: 3.01e-06 | G85: 3.01e-06 | H85: 3.01e-06 | I85: 3.01e-06 | J85: 3.01e-06 | K85: 3.01e-06 | L85: 3.01e-06 | M85: 3.01e-06 | N85: 3.02e-06 | O85: 3.02e-06 | P85: 3.02e-06 | Q85: 3.02e-06 | R85: 3.02e-06 | S85: 3.02e-06 | T85: 3.02e-06 | U85: 2.99e-06 | V85: 2.99e-06 | X85: =$X$3 -> 1900-01-20 | Y85: ↙ Number of periods for A and B cycles | AN85: MEOW/BTC 0.00000002
A86: Fd | B86: F↗↘ | F86: =3/6*E85+2/6*D85+1/6*C85 -> 3.01e-06 | G86: =3/6*F85+2/6*E85+1/6*D85 -> 3.01e-06 | H86: 3.01e-06 | I86: 3.01e-06 | J86: 3.01e-06 | K86: 3.01e-06 | L86: 3.01e-06 | M86: 3.01e-06 | N86: 3.01e-06 | O86: 3.015e-06 | P86: 3.018333333e-06 | Q86: 3.02e-06 | R86: 3.02e-06 | S86: 3.02e-06 | T86: 3.02e-06 | U86: 3.02e-06 | V86: 3.005e-06 | W86: =3/6*V85+2/6*U85+1/6*T85 -> 2.995e-06 | X86: 2 | Y86: 0 | AN86: MINT/BTC 0.00000011
A87: ❹ | B87: -0.01 | C87: -0.00398985 | D87: -0.00059161 | E87: 00:00:42.118 | F87: -0.00444189 | G87: 00:03:20.505 | H87: 00:05:47.485 | I87: 00:12:33.734 | J87: 00:06:53.854 | X87: =IF(X86>$X$3,0,X86) -> 2 | Y87: =IF(Y86>$X$3,0,Y86) -> 0 | AA87: =IF(X88=0,"",IF(X88>0,"C","N")) -> N | AN87: MN1/BTC 0.01270000
B88: Price Yt | C88: 3.33e-06 | D88: 3.28e-06 | E88: 3.28e-06 | F88: 3.28e-06 | G88: 3.28e-06 | H88: 3.12e-06 | I88: 3.12e-06 | J88: 3.12e-06 | K88: 3.12e-06 | L88: 3.12e-06 | M88: 3.12e-06 | N88: 3.1e-06 | O88: 3.1e-06 | P88: 3.01e-06 | Q88: 3.01e-06 | R88: 3.01e-06 | S88: 3.01e-06 | T88: 3.01e-06 | U88: 3.01e-06 | V88: 3.02e-06 | X88: =NPV($Y$3,C87:L87)+B87 -> -0.004023180983 | AN88: MN2/BTC 0.11989999
A89: =A90/10 -> 0.2 | B89: F↗↘ | C89: =ABS(C88) -> 3.33e-06 | D89: =ABS(C88) -> 3.33e-06 | E89: =D89+а4*(D88-D89) -> 3.32e-06 | F89: 3.312e-06 | G89: 3.3056e-06 | H89: =G89+а4*(G88-G89) -> 3.30048e-06 | I89: 3.264384e-06 | J89: 3.2355072e-06 | K89: 3.21240576e-06 | L89: 3.193924608e-06 | M89: 3.179139686e-06 | N89: 3.167311749e-06 | O89: 3.153849399e-06 | P89: 3.143079519e-06 | Q89: 3.116463616e-06 | R89: 3.095170892e-06 | S89: 3.078136714e-06 | T89: 3.064509371e-06 | U89: 3.053607497e-06 | V89: 3.044885998e-06 | W89: 3.039908798e-06 | X89: =IF(B87=0,0,AA89*365/$AA$5) -> 0.446720176 | AA89: =IRR(B87:V87) -> 0.01223890893 | AN89: MNC/BTC 0.00020301
A90: 1900-01-02 | C90: -0.00398985 | D90: -0.00059161 | E90: 00:00:42.118 | F90: -0.00444189 | G90: 00:03:20.505 | H90: 00:05:47.485 | I90: 00:12:33.734 | J90: 00:06:53.854 | X90: =NPV($Y$3,C90:L90)+B90 -> 0.005976819017 | AN90: MRY/BTC 0.00000856
A91: 2 | B91: Price Yt | C91: 4.039209573e-06 | D91: 4.031367658e-06 | E91: 4.04303328e-06 | F91: 4.04303328e-06 | G91: 4.04303328e-06 | H91: 4.038426624e-06 | I91: 3.936407966e-06 | J91: 3.835049512e-06 | K91: 3.567310911e-06 | L91: 3.567310911e-06 | M91: 3.541791083e-06 | N91: 3.386447697e-06 | O91: 3.379158157e-06 | P91: 3.352606173e-06 | Q91: 3.348008756e-06 | R91: 3.167491893e-06 | S91: 3.153993514e-06 | T91: 3.039908798e-06 | U91: 3.039908798e-06 | V91: 3.039908798e-06 | X91: =IF(B90=0,0,AA96*365/$AA$5) -> 0 | AN91: MZC/BTC 0.00000088
A92: =A93/10 -> 0.2 | B92: F↗↘ | C92: =ABS(C91) -> 4.039209573e-06 | D92: =ABS(C91) -> 4.039209573e-06 | E92: =D92+а43*(D91-D92) -> 4.03764119e-06 | F92: 4.038719608e-06 | G92: 4.039582342e-06 | H92: =G92+а43*(G91-G92) -> 4.04027253e-06 | I92: 4.039903349e-06 | J92: 4.019204272e-06 | K92: 3.98237332e-06 | L92: 3.899360838e-06 | M92: 3.832950853e-06 | N92: 3.774718899e-06 | O92: 3.697064658e-06 | P92: 3.633483358e-06 | Q92: 3.577307921e-06 | R92: 3.531448088e-06 | S92: 3.458656849e-06 | T92: 3.397724182e-06 | U92: 3.326161105e-06 | V92: 3.268910644e-06 | W92: 3.223110275e-06 | AN92: NAN/BTC 0.00000221
A93: 1900-01-02 | AN93: NBL/BTC 0.00001273
A94: 2 | B94: A | I94: B | Q94: C | W94: Go to: | X94: ↙ Refresh | Y94: 2014-03-30 | Z94: 0 | AA94: =IF(X90=0,"",IF(X90>0,"C","N")) -> C | AN94: NEC/BTC 0.00001339
A95: α# | X95: Go to: | AN95: NET/BTC 0.00000299
AA96: =IRR(B90:V90) -> 0.2108441003 | AN96: NMC/BTC 0.00474885
B97: NET | AN97: NRB/BTC 0.00000984
AN98: NVC/BTC 0.00691186
AN99: NXT/BTC 0.00004707
Z100: 0 | AN100: NYAN/BTC 0.00000067
AN101: ORB/BTC 0.00004902
AN102: OSC/BTC 0.00000256
A103: NetCoin | AN103: PHS/BTC 0.00013505
AN104: Points/BTC 0.00085000
AN105: POT/BTC 0.00001183
W106: NET | AN106: PPC/BTC 0.00479152
AN107: PTS/BTC 0.00813303
AN108: PXC/BTC 0.00000341
AN109: PYC/BTC 0.00001601
Z110: To source | AA110: EarthCoin | AN110: QRK/BTC 0.00004048
A111: EAC/BTC | C111: =IF(A4="FALCE","❶","") ->  | D111: =IF(A31="FALCE","❷","") ->  | E111: =IF(A58="FALCE","❸","") ->  | F111: =IF(A85="FALCE","❹","") ->  | G111: =IF(A85="FALCE","❹","") ->  | H111: =IF(A139="FALCE","❻","") ->  | I111: =IF(A166="FALCE","❼","") ->  | J111: =IF(A193="FALCE","❽","") ->  | K111: =IF(A220="FALCE","❾","") ->  | L111: =IF(A247="FALCE","❿","") ->  | M111: =IF(A247="FALCE","❿","") ->  | T111: =IF(A112="FALSE","THERE IS CHANGE IN THE IMPORT DATA. ADJUST THE INPUT !","") ->  | U111: EAC/BTC 0.00000006 | V111: EAC/BTC | W111: 6e-08 | AN111: RDD/BTC 0.00000003
A112: =IF(V111=A111,"TRUE","FALSE") -> TRUE | B112: Price Yt | C112: 6e-08 | D112: 6e-08 | E112: 6e-08 | F112: 6e-08 | G112: 6e-08 | H112: 6e-08 | I112: 6e-08 | J112: 6e-08 | K112: 6e-08 | L112: 6e-08 | M112: 6e-08 | N112: 8e-08 | O112: 8e-08 | P112: 8e-08 | Q112: 8e-08 | R112: 8e-08 | S112: 8e-08 | T112: 8e-08 | U112: 6e-08 | V112: 6e-08 | X112: =$X$3 -> 1900-01-20 | Y112: ↙ Number of periods for A and B cycles | AN112: RPC/BTC 0.00090000
A113: Fd | B113: F↗↘ | F113: =3/6*E112+2/6*D112+1/6*C112 -> 6e-08 | G113: =3/6*F112+2/6*E112+1/6*D112 -> 6e-08 | H113: 6e-08 | I113: 6e-08 | J113: 6e-08 | K113: 6e-08 | L113: 6e-08 | M113: 6e-08 | N113: =3/6*M112+2/6*L112+1/6*K112 -> 6e-08 | O113: 7e-08 | P113: 7.666666667e-08 | Q113: 8e-08 | R113: 8e-08 | S113: 8e-08 | T113: 8e-08 | U113: 8e-08 | V113: 7e-08 | W113: 6.333333333e-08 | X113: 2 | Y113: 0 | AN113: RYC/BTC 0.00000129
A114: ❺ | X114: =IF(X113>$X$3,0,X113) -> 2 | Y114: =IF(Y113>$X$3,0,Y113) -> 0 | AA114: =IF(X115=0,"",IF(X115>0,"C","N")) ->  | AN114: SAT/BTC 0.00000003
B115: Price Yt | C115: 7e-08 | D115: 7e-08 | E115: 7e-08 | F115: 7e-08 | G115: 7e-08 | H115: 7e-08 | I115: 7e-08 | J115: 7e-08 | K115: 7e-08 | L115: 7e-08 | M115: 7e-08 | N115: 7e-08 | O115: 6e-08 | P115: 6e-08 | Q115: 6e-08 | R115: 6e-08 | S115: 6e-08 | T115: 6e-08 | U115: 6e-08 | V115: 8e-08 | X115: =NPV($Y$3,C114:L114)+B114 -> 0 | AN115: SBC/BTC 0.00000323
A116: =A117/10 -> 0.2 | B116: F↗↘ | C116: =ABS(C115) -> 7e-08 | D116: =ABS(C115) -> 7e-08 | E116: =D116+а5*(D115-D116) -> 7e-08 | F116: 7e-08 | G116: 7e-08 | H116: 7e-08 | I116: 7e-08 | J116: =I116+а5*(I115-I116) -> 7e-08 | K116: 7e-08 | L116: 7e-08 | M116: 7e-08 | N116: 7e-08 | O116: 7e-08 | P116: 6.8e-08 | Q116: 6.64e-08 | R116: 6.512e-08 | S116: 6.4096e-08 | T116: 6.32768e-08 | U116: 6.262144e-08 | V116: 6.2097152e-08 | W116: 6.56777216e-08 | X116: =IF(B114=0,0,AA116*365/$AA$5) -> 0 | AA116: =IRR(B114:V114) ->  | AN116: SMC/BTC 0.00000255
A117: 1900-01-02 | X117: =NPV($Y$3,C117:L117)+B117 -> 0 | AN117: SPA/BTC 0.00000773
A118: 2 | B118: Price Yt | C118: 7.756e-08 | D118: 7.6048e-08 | E118: 7.865477072e-08 | F118: 7.865477072e-08 | G118: 7.865477072e-08 | H118: 7.892381657e-08 | I118: 7.913905326e-08 | J118: 8e-08 | K118: 8e-08 | L118: 8e-08 | M118: 8e-08 | N118: 7.833333333e-08 | O118: 7.666666667e-08 | P118: 6.981333333e-08 | Q118: 6.892625818e-08 | R118: 6.914100654e-08 | S118: 6.244129601e-08 | T118: 6.56777216e-08 | U118: 6.56777216e-08 | V118: 6.56777216e-08 | X118: =IF(B117=0,0,AA123*365/$AA$5) -> 0 | AN118: SPT/BTC 0.00000603
A119: =A120/10 -> 0.2 | B119: F↗↘ | C119: =ABS(C118) -> 7.756e-08 | D119: =ABS(C118) -> 7.756e-08 | E119: =D119+а53*(D118-D119) -> 7.72576e-08 | F119: 7.753703414e-08 | G119: 7.776058146e-08 | H119: 7.793941931e-08 | I119: 7.813629876e-08 | J119: 7.833684966e-08 | K119: 7.866947973e-08 | L119: 7.893558378e-08 | M119: 7.914846703e-08 | N119: 7.931877362e-08 | O119: 7.912168556e-08 | P119: 7.863068178e-08 | Q119: 7.686721209e-08 | R119: 7.527902131e-08 | S119: 7.405141836e-08 | T119: 7.172939389e-08 | U119: 7.051905943e-08 | V119: 6.955079186e-08 | W119: 6.877617781e-08 | AN119: SRC/BTC 0.00019900
A120: 1900-01-02 | AN120: STR/BTC 0.00000040
A121: 2 | B121: A | I121: B | Q121: C | W121: Go to: | X121: ↙ Refresh | Z121: 0 | AN121: SXC/BTC 0.00000520
A122: α# | X122: Go to: | AN122: TAG/BTC 0.00022530
AA123: =IRR(B117:V117) ->  | AN123: TAK/BTC 0.00000020
B124: EAC | AN124: TEK/BTC 0.00020600
AN125: TGC/BTC 0.00000118
AN126: TRC/BTC 0.00019697
A127: 1900-01-05 | Z127: 0 | AN127: UNO/BTC 0.00485453
AN128: UTC/BTC 0.00012044
AN129: VTC/BTC 0.00189560
A130: EarthCoin | AN130: WC/BTC 0.00000765
AN131: WDC/BTC 0.00006450
AN132: XJO/BTC 0.00000526
AN133: XPM/BTC 0.00179964
AN134: YAC/BTC 0.00001176
W135: EAC | AN135: YBC/BTC 0.00277334
AN136: ZCC/BTC 0.00007716
Z137: To source | AA137: FastCoin | AN137: ZED/BTC 0.00000478
A138: FST/BTC | C138: =IF(A4="FALCE","❶","") ->  | D138: =IF(A31="FALCE","❷","") ->  | E138: =IF(A58="FALCE","❸","") ->  | F138: =IF(A85="FALCE","❹","") ->  | G138: =IF(A112="FALCE","❺","") ->  | H138: =IF(A112="FALCE","❺","") ->  | I138: =IF(A166="FALCE","❼","") ->  | J138: =IF(A193="FALCE","❽","") ->  | K138: =IF(A220="FALCE","❾","") ->  | L138: =IF(A247="FALCE","❿","") ->  | M138: =IF(A247="FALCE","❿","") ->  | T138: =IF(A139="FALSE","THERE IS CHANGE IN THE IMPORT DATA. ADJUST THE INPUT !","") ->  | U138: FST/BTC 0.00000284 | V138: FST/BTC | W138: 2.84e-06 | AN138: ZET/BTC 0.00006096
A139: =IF(V138=A138,"TRUE","FALSE") -> TRUE | B139: Price Yt | C139: 3.02e-06 | D139: 3e-06 | E139: 3e-06 | F139: 3e-06 | G139: 3e-06 | H139: 3e-06 | I139: 3e-06 | J139: 3e-06 | K139: 3e-06 | L139: 3e-06 | M139: 3e-06 | N139: 3.03e-06 | O139: 3.03e-06 | P139: 3.03e-06 | Q139: 3.03e-06 | R139: 3.03e-06 | S139: 3.03e-06 | T139: 3.03e-06 | U139: 2.84e-06 | V139: 2.84e-06 | X139: =$X$3 -> 1900-01-20 | Y139: ↙ Number of periods for A and B cycles
A140: Fd | B140: F↗↘ | F140: =3/6*E139+2/6*D139+1/6*C139 -> 3.003333333e-06 | G140: 3e-06 | H140: 3e-06 | I140: 3e-06 | J140: 3e-06 | K140: 3e-06 | L140: 3e-06 | M140: 3e-06 | N140: 3e-06 | O140: 3.015e-06 | P140: 3.025e-06 | Q140: 3.03e-06 | R140: 3.03e-06 | S140: 3.03e-06 | T140: 3.03e-06 | U140: 3.03e-06 | V140: 2.935e-06 | W140: 2.871666667e-06 | X140: 2 | Y140: 0
A141: ❻ | X141: =IF(X140>$X$3,0,X140) -> 2 | Y141: =IF(Y140>$X$3,0,Y140) -> 0
B142: Price Yt | C142: 3.11e-06 | D142: 3.11e-06 | E142: 3.11e-06 | F142: 3.11e-06 | G142: 3.11e-06 | H142: 3.11e-06 | I142: 3.11e-06 | J142: 3.11e-06 | K142: 3.11e-06 | L142: 3.11e-06 | M142: 3.11e-06 | N142: 3e-06 | O142: 3e-06 | P142: 3.05e-06 | Q142: 3.05e-06 | R142: 3.02e-06 | S142: 3.02e-06 | T142: 3e-06 | U142: 3e-06 | V142: 3.03e-06 | AN142: LTC Markets
A143: =A144/10 -> 0.2 | B143: F↗↘ | C143: =ABS(C142) -> 3.11e-06 | D143: =ABS(C142) -> 3.11e-06 | E143: =D143+а6*(D142-D143) -> 3.11e-06 | F143: =E143+а6*(E142-E143) -> 3.11e-06 | G143: 3.11e-06 | H143: 3.11e-06 | I143: 3.11e-06 | J143: 3.11e-06 | K143: 3.11e-06 | L143: 3.11e-06 | M143: 3.11e-06 | N143: 3.11e-06 | O143: 3.088e-06 | P143: 3.0704e-06 | Q143: 3.06632e-06 | R143: 3.063056e-06 | S143: 3.0544448e-06 | T143: 3.04755584e-06 | U143: 3.038044672e-06 | V143: 3.030435738e-06 | W143: =V143+а6*(V142-V143) -> 3.03034859e-06 | X143: =IF(B141=0,0,AA142*365/$AA$5) -> 0
A144: 1900-01-02
A145: 2 | B145: Price Yt | C145: 2.685173724e-06 | D145: 2.678138979e-06 | E145: 2.611029124e-06 | F145: 2.611029124e-06 | G145: 2.611029124e-06 | H145: 2.604823299e-06 | I145: 2.620858639e-06 | J145: 2.654475543e-06 | K145: 2.906649749e-06 | L145: 2.906649749e-06 | M145: 2.949319799e-06 | N145: 3.103056637e-06 | O145: 3.078330018e-06 | P145: 2.993644472e-06 | Q145: 3.056225362e-06 | R145: 3.11e-06 | S145: 3.088e-06 | T145: 3.03034859e-06 | U145: 3.03034859e-06 | V145: 3.03034859e-06 | X145: =IF(B144=0,0,AA149*365/$AA$5) -> 0
A146: =A147/10 -> 0.2 | B146: F↗↘ | C146: =ABS(C145) -> 2.685173724e-06 | D146: =ABS(C145) -> 2.685173724e-06 | E146: =D146+а63*(D145-D146) -> 2.683766775e-06 | F146: 2.669219245e-06 | G146: 2.657581221e-06 | H146: 2.648270801e-06 | I146: 2.639581301e-06 | J146: 2.635836769e-06 | K146: 2.639564523e-06 | L146: 2.692981569e-06 | M146: 2.735715205e-06 | N146: 2.778436124e-06 | O146: 2.843360226e-06 | P146: 2.890354185e-06 | Q146: 2.911012242e-06 | R146: 2.940054866e-06 | S146: 2.974043893e-06 | T146: 2.996835114e-06 | U146: 3.003537809e-06 | V146: 3.008899966e-06 | W146: =V146+а63*(V145-V146) -> 3.01318969e-06 | AN146: ADT/LTC 0.00000017
A147: 1900-01-02 | B147: α | AN147: ANC/LTC 0.06690000
A148: 2 | B148: A | I148: B | Q148: C | W148: Go to: | X148: ↙ Refresh | Z148: 0 | AN148: ASC/LTC 0.00001002
A149: α# | X149: Go to: | AN149: AUR/LTC 0.07766646
AN150: BAT/LTC 0.00000014
B151: FST | AN151: BC/LTC 0.01254465
AN152: CGB/LTC 0.03492998
W153: FST | AN153: CNC/LTC 0.00016355
Z154: 0 | AN154: COL/LTC 0.00000006
AN155: CPR/LTC 0.25996069
AN156: CTM/LTC 0.00000006
A157: FastCoin | AN157: DBL/LTC 0.00028034
AN158: DGC/LTC 0.00241983
AN159: DMC/LTC 0.00000005
AN160: DOGE/LTC 0.00004642
AN161: DVC/LTC 0.00001151
AN162: ELP/LTC 0.00001601
AN163: EZC/LTC 0.00014100
Z164: To source | AA164: DarkCoin | AN164: FLO/LTC 0.00013467
A165: DRK/BTC | C165: =IF(A4="FALCE","❶","") ->  | D165: =IF(A31="FALCE","❷","") ->  | E165: =IF(A58="FALCE","❸","") ->  | F165: =IF(A85="FALCE","❹","") ->  | G165: =IF(A112="FALCE","❺","") ->  | H165: =IF(A139="FALCE","❻","") ->  | I165: =IF(A139="FALCE","❻","") ->  | J165: =IF(A193="FALCE","❽","") ->  | K165: =IF(A220="FALCE","❾","") ->  | L165: =IF(A247="FALCE","❿","") ->  | M165: =IF(A247="FALCE","❿","") ->  | T165: =IF(A166="FALSE","THERE IS CHANGE IN THE IMPORT DATA. ADJUST THE INPUT !","") ->  | U165: DRK/BTC 0.00383659 | V165: DRK/BTC | W165: 0.00383659 | AN165: FRK/LTC 0.01997199
A166: =IF(V165=A165,"TRUE","FALSE") -> TRUE | B166: Price Yt | C166: 0.00384 | D166: 0.00387002 | E166: 0.00387002 | F166: 0.00387002 | G166: 0.00387002 | H166: 0.00387002 | I166: 0.00387002 | J166: 0.00387002 | K166: 0.00387002 | L166: 0.00387002 | M166: 0.00387002 | N166: 0.00390012 | O166: 0.00390012 | P166: 0.00390012 | Q166: 0.00390012 | R166: 0.00390012 | S166: 0.00390012 | T166: 0.00390012 | U166: 0.00383659 | V166: 0.00383659 | X166: =$X$3 -> 20 | Y166: ↙ Number of periods for A and B cycles | AN166: FST/LTC 0.00013555
A167: Fd | B167: F↗↘ | F167: =3/6*E166+2/6*D166+1/6*C166 -> 0.003865016667 | G167: =3/6*F166+2/6*E166+1/6*D166 -> 0.00387002 | H167: 0.00387002 | I167: =3/6*H166+2/6*G166+1/6*F166 -> 0.00387002 | J167: 0.00387002 | K167: =3/6*J166+2/6*I166+1/6*H166 -> 0.00387002 | L167: 0.00387002 | M167: 0.00387002 | N167: 0.00387002 | O167: =3/6*N166+2/6*M166+1/6*L166 -> 0.00388507 | P167: 0.003895103333 | Q167: 0.00390012 | R167: 0.00390012 | S167: 0.00390012 | T167: 0.00390012 | U167: 0.00390012 | V167: 0.003868355 | W167: =3/6*V166+2/6*U166+1/6*T166 -> 0.003847178333 | X167: 2 | Y167: 0 | AN167: GLD/LTC 0.00115119
A168: ❼ | X168: =IF(X167>$X$3,0,X167) -> 2 | Y168: =IF(Y167>$X$3,0,Y167) -> 0 | AN168: GME/LTC 0.00000325
B169: Price Yt | C169: 0.00409999 | D169: 0.00388933 | E169: 0.00388933 | F169: 0.00388933 | G169: 0.00388933 | H169: 0.00390448 | I169: 0.00390448 | J169: 0.00390448 | K169: 0.00390448 | L169: 0.00390448 | M169: 0.00390448 | N169: 0.00385999 | O169: 0.00385999 | P169: 0.00389894 | Q169: 0.00389894 | R169: 0.00384 | S169: 0.00384 | T169: 0.00387002 | U169: 0.00387002 | V169: 0.00390012 | AN169: IFC/LTC 0.00000215
A170: =A171/10 -> 0.2 | B170: F↗↘ | C170: =ABS(C169) -> 0.00409999 | D170: =ABS(C169) -> 0.00409999 | E170: =D170+а7*(D169-D170) -> 0.004057858 | F170: 0.0040241524 | G170: 0.00399718792 | H170: 0.003975616336 | I170: 0.003961389069 | J170: 0.003950007255 | K170: 0.003940901804 | L170: 0.003933617443 | M170: 0.003927789955 | N170: 0.003923127964 | O170: 0.003910500371 | P170: 0.003900398297 | Q170: 0.003900106637 | R170: 0.00389987331 | S170: 0.003887898648 | T170: 0.003878318918 | U170: 0.003876659135 | V170: 0.003875331308 | W170: =V170+а7*(V169-V170) -> 0.003880289046 | X170: =IF(B168=0,0,AA169*365/$AA$5) -> 0 | AN170: JKC/LTC 0.00023133
A171: 1900-01-02 | B171: α | AN171: KARM/LTC 0.00000043
A172: 2 | B172: Price Yt | C172: 0.00219198345 | D172: 0.00219198345 | E172: 0.00215444876 | F172: 0.002196871345 | G172: 0.002196871345 | H172: 0.002196871345 | I172: 0.002262045187 | J172: 0.002695818075 | K172: 0.002634398128 | L172: 0.003369472834 | M172: 0.003629837905 | N172: 0.004181477734 | O172: 0.004151002894 | P172: 0.003852672778 | Q172: 0.003839519932 | R172: 0.003916230792 | S172: 0.003904982634 | T172: 0.003880289046 | U172: 0.003880289046 | V172: 0.003880289046 | X172: =IF(B171=0,0,AA176*365/$AA$5) -> 0 | AN172: MEC/LTC 0.00748064
A173: =A174/10 -> 0.2 | B173: F↗↘ | C173: =ABS(C172) -> 0.00219198345 | D173: =ABS(C172) -> 0.00219198345 | E173: =D173+а73*(D172-D173) -> 0.00219198345 | F173: 0.002184476512 | G173: 0.002186955479 | H173: 0.002188938652 | I173: 0.00219052519 | J173: 0.00220482919 | K173: 0.002303026967 | L173: 0.002369301199 | M173: 0.002569335526 | N173: 0.002781436002 | O173: 0.003061444348 | P173: 0.003279356057 | Q173: 0.003394019401 | R173: 0.003483119508 | S173: 0.003569741765 | T173: 0.003636789938 | U173: 0.00368548976 | V173: 0.003724449617 | W173: =V173+а73*(V172-V173) -> 0.003755617503 | AN173: MEM/LTC 0.00001856
A174: 1900-01-02 | B174: α | AN174: MOON/LTC 0.00000009
A175: 2 | B175: A | I175: B | Q175: C | X175: ↙ Refresh | Z175: 0 | AN175: MST/LTC 0.00002500
A176: α# | X176: Go to: | AN176: NET/LTC 0.00012874
AN177: NXT/LTC 0.00199998
B178: DRK | AN178: PPC/LTC 0.20446040
W179: Go to: | AN179: PXC/LTC 0.00014504
AN180: QRK/LTC 0.00170268
Z181: 0 | AN181: RBBT/LTC 0.00000005
W182: DRK | AN182: RED/LTC 0.00027100
A183: DarkCoin | AN183: RYC/LTC 0.00006041
A184: 1900-01-01 | AN184: SBC/LTC 0.00013953
AN185: SXC/LTC 0.00022350
AN186: TIPS/LTC 0.00000008
AN187: TIX/LTC 0.00000058
AN188: WDC/LTC 0.00273630
AN189: XNC/LTC 0.00000414
AN190: XPM/LTC 0.07665460
Z191: To source | AA191: CatCoin | AN191: YAC/LTC 0.00052773
A192: CAT/BTC | C192: =IF(A4="FALCE","❶","") ->  | D192: =IF(A31="FALCE","❷","") ->  | E192: =IF(A58="FALCE","❸","") ->  | F192: =IF(A85="FALCE","❹","") ->  | G192: =IF(A112="FALCE","❺","") ->  | H192: =IF(A139="FALCE","❻","") ->  | I192: =IF(A166="FALCE","❼","") ->  | J192: =IF(A166="FALCE","❼","") ->  | K192: =IF(A220="FALCE","❾","") ->  | L192: =IF(A247="FALCE","❿","") ->  | M192: =IF(A247="FALCE","❿","") ->  | T192: =IF(A193="FALSE","THERE IS CHANGE IN THE IMPORT DATA. ADJUST THE INPUT !","") ->  | U192: CAT/BTC 0.00007725 | V192: CAT/BTC | W192: 7.725e-05 | AN192: ZEIT/LTC 0.00000128
A193: =IF(V192=A192,"TRUE","FALSE") -> TRUE | B193: Price Yt | C193: 7.965e-05 | D193: 7.737e-05 | E193: 7.737e-05 | F193: 7.737e-05 | G193: 7.737e-05 | H193: 7.737e-05 | I193: 7.737e-05 | J193: 7.737e-05 | K193: 7.737e-05 | L193: 7.737e-05 | M193: 7.737e-05 | N193: 7.737e-05 | O193: 7.737e-05 | P193: 7.737e-05 | Q193: 7.737e-05 | R193: 7.737e-05 | S193: 7.737e-05 | T193: 7.737e-05 | U193: 7.725e-05 | V193: 7.725e-05 | X193: =$X$3 -> 20 | Y193: ↙ Number of periods for A and B cycles | AN193: ZET/LTC 0.00259406
A194: Fd | B194: F↗↘ | F194: =3/6*E193+2/6*D193+1/6*C193 -> 7.775e-05 | G194: 7.737e-05 | H194: 7.737e-05 | I194: 7.737e-05 | J194: 7.737e-05 | K194: 7.737e-05 | L194: 7.737e-05 | M194: 7.737e-05 | N194: 7.737e-05 | O194: 7.737e-05 | P194: 7.737e-05 | Q194: 7.737e-05 | R194: 7.737e-05 | S194: 7.737e-05 | T194: 7.737e-05 | U194: 7.737e-05 | V194: 7.731e-05 | W194: 7.727e-05 | X194: 2 | Y194: 0
A195: ❽ | X195: =IF(X194>$X$3,0,X194) -> 2 | Y195: =IF(Y194>$X$3,0,Y194) -> 0
B196: Price Yt | C196: 7.113e-05 | D196: 7.484e-05 | E196: 7.484e-05 | F196: 7.484e-05 | G196: 7.484e-05 | H196: 7.484e-05 | I196: 7.484e-05 | J196: 7.484e-05 | K196: 7.484e-05 | L196: 7.484e-05 | M196: 7.484e-05 | N196: 9.057e-05 | O196: 9.057e-05 | P196: 8.724e-05 | Q196: 8.724e-05 | R196: 7.965e-05 | S196: 7.965e-05 | T196: 7.737e-05 | U196: 7.737e-05 | V196: 7.737e-05
A197: =A198/10 -> 0.2 | B197: F↗↘ | C197: =ABS(C196) -> 7.113e-05 | D197: =ABS(C196) -> 7.113e-05 | E197: =D197+а8*(D196-D197) -> 7.1872e-05 | F197: =E197+а8*(E196-E197) -> 7.24656e-05 | G197: 7.294048e-05 | H197: 7.3320384e-05 | I197: 7.36243072e-05 | J197: 7.386744576e-05 | K197: 7.406195661e-05 | L197: 7.421756529e-05 | M197: 7.434205223e-05 | N197: 7.444164178e-05 | O197: 7.766731343e-05 | P197: 8.024785074e-05 | Q197: 8.164628059e-05 | R197: 8.276502447e-05 | S197: 8.214201958e-05 | T197: 8.164361566e-05 | U197: 8.078889253e-05 | V197: 8.010511402e-05 | W197: 7.955809122e-05 | X197: =IF(B195=0,0,AA196*365/$AA$5) -> 0 | AN197: Trade Cryptocurrencies
A198: 1900-01-02 | B198: α | L198: 6.042209163e-07 | M198: 3.688800655e-07 | N198: 2.535350887e-07 | O198: 1.849719289e-07 | P198: 1.419659889e-07 | Q198: 1.139132332e-07 | R198: 9.506672106e-08 | S198: 8.220508333e-08 | T198: 7.34458632e-08 | U198: 6.763755146e-08
A199: 2 | B199: Price Yt | C199: 6.749e-05 | D199: 6.749e-05 | E199: 6.7482e-05 | F199: 6.70381612e-05 | G199: 6.70381612e-05 | H199: 6.70381612e-05 | I199: 6.711252896e-05 | J199: 6.617368984e-05 | K199: 6.522295187e-05 | L199: 6.383851417e-05 | M199: 6.747081134e-05 | N199: 8.62734213e-05 | O199: 8.51503111e-05 | P199: 8.124311947e-05 | Q199: 8.064293814e-05 | R199: 7.457138416e-05 | S199: 7.777110732e-05 | T199: 7.955809122e-05 | U199: 7.955809122e-05 | V199: 7.955809122e-05 | X199: =IF(B198=0,0,AA203*365/$AA$5) -> 0
A200: =A201/10 -> 0.2 | B200: F↗↘ | C200: =ABS(C199) -> 6.749e-05 | D200: =ABS(C199) -> 6.749e-05 | E200: =D200+а83*(D199-D200) -> 6.749e-05 | F200: 6.74884e-05 | G200: 6.739835224e-05 | H200: 6.732631403e-05 | I200: 6.726868347e-05 | J200: 6.723745257e-05 | K200: 6.702470002e-05 | L200: 6.666435039e-05 | M200: 6.609918315e-05 | N200: 6.637350878e-05 | O200: 7.035349129e-05 | P200: 7.331285525e-05 | Q200: 7.489890809e-05 | R200: 7.60477141e-05 | S200: 7.575244811e-05 | T200: 7.615617996e-05 | U200: 7.683656221e-05 | V200: 7.738086801e-05 | W200: 7.781631265e-05 | AN200: Trade over 100 different types of cryptocurrencies
A201: 1900-01-02 | B201: α
A202: 2 | B202: A | I202: B | Q202: C | W202: Go to | X202: ↙ Refresh | Z202: 0 | AN202: Coin Transfers
... 281 more rows
